fUST/lending_fUST_20250601
["ID","MTS","AMOUNT","RATE_DAILY","PERIOD"]
[363489661,1748739044734,-430.0,0.00018904,2]
[363489662,1748739044743,-2302.45,0.00018904,2]
[363489665,1748739044753,-1027.59,0.00018904,2]
[363489666,1748739044762,-764.61,0.00018904,2]
[363489668,1748739044773,-433.81,0.00018904,2]
[363489670,1748739044782,-430.0,0.00018904,2]
[363489673,1748739044793,-445.95,0.00018904,2]
[363489674,1748739044803,-526.31,0.00018904,2]
[363489676,1748739044814,-430.0,0.00018904,2]
[363489679,1748739044824,-460.25,0.00018904,2]
[363489681,1748739044833,-430.0,0.00018904,2]
[363489683,1748739044843,-430.0,0.00018904,2]
[363489685,1748739044852,-771.04,0.00018904,2]
[363489687,1748739044861,-430.0,0.00018904,2]
[363489689,1748739044871,-430.0,0.00018904,2]
[363489691,1748739044881,-329.07,0.00018904,2]
[363489693,1748739044891,-670.0,0.00018904,2]
[363489695,1748739044904,-430.0,0.00018904,2]
[363489697,1748739044914,-430.0,0.00018904,2]
[363489698,1748739044923,-852.08,0.00018904,2]
[363489700,1748739044934,-620.15,0.00018904,2]
[363489702,1748739044943,-569.84,0.00018904,2]
[363489704,1748739044953,-430.0,0.00018904,2]
[363489706,1748739044963,-430.0,0.00018904,2]
[363489709,1748739044974,-1342.9,0.00018904,2]
[363489711,1748739044984,-430.0,0.00018904,2]
[363489713,1748739044994,-430.0,0.00018904,2]
[363489715,1748739045004,-885.12,0.00018904,2]
[363489717,1748739045013,-1113.58,0.00018904,2]
[363489719,1748739045024,-430.0,0.00018904,2]
[363489721,1748739045034,-939.81,0.00018904,2]
[363489723,1748739045043,-430.0,0.00018904,2]
[363489725,1748739045053,-430.0,0.00018904,2]
[363489727,1748739045063,-1583.31,0.00018904,2]
[363489729,1748739045072,-534.72,0.00018904,2]
[363489731,1748739045081,-948.01,0.00018904,2]
[363489733,1748739045090,-2017.89,0.00018904,2]
[363489735,1748739045100,-1491.30318941,0.00019107,2]
[363489737,1748739045109,-500.0,0.00019178,2]
[363489739,1748739045118,-500.0,0.00019178,2]
[363489741,1748739045128,-500.0,0.00019178,2]
[363489743,1748739045138,-500.0,0.00019178,2]
[363489745,1748739045148,-500.0,0.00019178,2]
[363489747,1748739045157,-411.21434068,0.00019178,2]
[363489749,1748739045166,-500.0,0.00019178,2]
[363489751,1748739045176,-500.0,0.00019178,2]
[363489753,1748739045186,-430.0,0.00019178,2]
[363489755,1748739045195,-681.97,0.00019178,2]
[363489768,1748739045315,-477.36338511,0.00019178,2]
[363489770,1748739045325,-2302.45,0.00019178,2]
[363489772,1748739045334,-1027.59,0.00019178,2]
[363489774,1748739045344,-764.61,0.00019178,2]
[363489776,1748739045354,-433.81,0.00019178,2]
[363489778,1748739045364,-430.0,0.00019178,2]
[363489780,1748739045374,-445.95,0.00019178,2]
[363489782,1748739045384,-526.31,0.00019178,2]
[363489784,1748739045394,-430.0,0.00019178,2]
[363489786,1748739045404,-460.25,0.00019178,2]
[363489789,1748739045415,-430.0,0.00019178,2]
[363489791,1748739045424,-430.0,0.00019178,2]
[363489793,1748739045434,-771.04,0.00019178,2]
[363489795,1748739045444,-430.0,0.00019178,2]
[363489797,1748739045453,-430.0,0.00019178,2]
[363489799,1748739045463,-670.0,0.00019178,2]
[363489801,1748739045472,-492.6460026,0.00019178,2]
[363489803,1748739045482,-430.0,0.00019178,2]
[363489805,1748739045491,-852.08,0.00019178,2]
[363489807,1748739045501,-620.15,0.00019178,2]
[363489809,1748739045511,-569.84,0.00019178,2]
[363489811,1748739045520,-430.0,0.00019178,2]
[363489813,1748739045530,-430.0,0.00019178,2]
[363489815,1748739045540,-1342.9,0.00019178,2]
[363489817,1748739045549,-430.0,0.00019178,2]
[363489819,1748739045559,-430.0,0.00019178,2]
[363489821,1748739045569,-885.12,0.00019178,2]
[363489823,1748739045578,-1113.58,0.00019178,2]
[363489825,1748739045588,-430.0,0.00019178,2]
[363489827,1748739045598,-939.81,0.00019178,2]
[363489829,1748739045608,-430.0,0.00019178,2]
[363489831,1748739045617,-430.0,0.00019178,2]
[363489833,1748739045627,-1583.31,0.00019178,2]
[363489835,1748739045636,-430.0,0.00019178,2]
[363489837,1748739045645,-430.0,0.00019178,2]
[363489839,1748739045655,-430.0,0.00019178,2]
[363489841,1748739045665,-430.0,0.00019178,2]
[363489843,1748739045674,-430.0,0.00019178,2]
[363489845,1748739045684,-430.0,0.00019178,2]
[363489847,1748739045693,-430.0,0.00019178,2]
[363489849,1748739045702,-436.15753342,0.00019178,2]
[363489851,1748739045711,-534.72,0.00019178,2]
[363489853,1748739045721,-948.01,0.00019178,2]
[363489855,1748739045730,-2017.89,0.00019178,2]
[363489857,1748739045739,-163.862003,0.00019178,2]
[363489859,1748739045749,-1491.30318941,0.00019383,2]
[363489861,1748739045759,-430.0,0.00019452,2]
[363489863,1748739045769,-681.97,0.00019452,2]
[363489865,1748739045778,-2302.45,0.00019452,2]
[363489867,1748739045788,-1027.59,0.00019452,2]
[363489869,1748739045798,-764.61,0.00019452,2]
[363489871,1748739045808,-433.81,0.00019452,2]
[363489873,1748739045817,-430.0,0.00019452,2]
[363489875,1748739045827,-445.95,0.00019452,2]
[363489877,1748739045836,-526.31,0.00019452,2]
[363489879,1748739045846,-460.25,0.00019452,2]
[363489881,1748739045855,-430.0,0.00019452,2]
[363489883,1748739045864,-430.0,0.00019452,2]
[363489885,1748739045874,-771.04,0.00019452,2]
[363489887,1748739045884,-430.0,0.00019452,2]
[363489889,1748739045896,-430.0,0.00019452,2]
[363489891,1748739045905,-670.0,0.00019452,2]
[363489893,1748739045914,-430.0,0.00019452,2]
[363489895,1748739045923,-852.08,0.00019452,2]
[363489897,1748739045932,-620.15,0.00019452,2]
[363489899,1748739045942,-569.84,0.00019452,2]
[363489901,1748739045951,-430.0,0.00019452,2]
[363489903,1748739045960,-430.0,0.00019452,2]
[363489905,1748739045970,-1342.9,0.00019452,2]
[363489907,1748739045979,-430.0,0.00019452,2]
[363489909,1748739045988,-430.0,0.00019452,2]
[363489911,1748739045997,-885.12,0.00019452,2]
[363489913,1748739046007,-1113.58,0.00019452,2]
[363489915,1748739046016,-430.0,0.00019452,2]
[363489917,1748739046026,-939.81,0.00019452,2]
[363489919,1748739046035,-430.0,0.00019452,2]
[363489921,1748739046046,-430.0,0.00019452,2]
[363489923,1748739046055,-1583.31,0.00019452,2]
[363489925,1748739046066,-534.72,0.00019452,2]
[363489927,1748739046076,-948.01,0.00019452,2]
[363489929,1748739046085,-2017.89,0.00019452,2]
[363489931,1748739046094,-3330.1,0.00019559,2]
[363489932,1748739046103,-690.20240459,0.00019588,2]
[363489934,1748739046114,-167.0,0.0001963,2]
[363489937,1748739046123,-1491.30318941,0.00019659,2]
[363489939,1748739046133,-701.003,0.00019687,2]
[363489941,1748739046143,-177.704,0.00019687,2]
[363489943,1748739046153,-151.0,0.00019726,2]
[363489944,1748739046163,-151.0,0.00019726,2]
[363489947,1748739046173,-151.0,0.00019726,2]
[363489949,1748739046183,-151.0,0.00019726,2]
[363489951,1748739046192,-151.0,0.00019726,2]
[363489953,1748739046202,-151.0,0.00019726,2]
[363489955,1748739046212,-1297.71436,0.00019726,2]
[363489957,1748739046222,-1297.71436,0.00019726,2]
[363489959,1748739046231,-430.0,0.00019726,2]
[363489961,1748739046240,-681.97,0.00019726,2]
[363489963,1748739046250,-2302.45,0.00019726,2]
[363489965,1748739046259,-1027.59,0.00019726,2]
[363489967,1748739046269,-764.61,0.00019726,2]
[363489969,1748739046278,-433.81,0.00019726,2]
[363489971,1748739046288,-430.0,0.00019726,2]
[363489973,1748739046298,-445.95,0.00019726,2]
[363489975,1748739046307,-526.31,0.00019726,2]
[363489977,1748739046316,-460.25,0.00019726,2]
[363489979,1748739046326,-430.0,0.00019726,2]
[363489981,1748739046336,-430.0,0.00019726,2]
[363489983,1748739046346,-771.04,0.00019726,2]
[363489985,1748739046355,-430.0,0.00019726,2]
[363489987,1748739046365,-430.0,0.00019726,2]
[363489989,1748739046376,-670.0,0.00019726,2]
[363489991,1748739046385,-430.0,0.00019726,2]
[363489993,1748739046396,-852.08,0.00019726,2]
[363489995,1748739046405,-620.15,0.00019726,2]
[363489997,1748739046413,-569.84,0.00019726,2]
[363489998,1748739046422,-430.0,0.00019726,2]
[363490000,1748739046432,-357.32,0.00019726,2]
[363490002,1748739046442,-1342.9,0.00019726,2]
[363490004,1748739046450,-436.49,0.00019726,2]
[363490006,1748739046459,-430.0,0.00019726,2]
[363490008,1748739046469,-885.12,0.00019726,2]
[363490010,1748739046478,-1113.58,0.00019726,2]
[363490012,1748739046488,-430.0,0.00019726,2]
[363490014,1748739046497,-939.81,0.00019726,2]
[363490016,1748739046506,-430.0,0.00019726,2]
[363490018,1748739046517,-430.0,0.00019726,2]
[363490020,1748739046526,-1583.31,0.00019726,2]
[363490022,1748739046536,-534.72,0.00019726,2]
[363490025,1748739046546,-948.01,0.00019726,2]
[363490026,1748739046555,-2017.89,0.00019726,2]
[363490028,1748739046565,-500.0,0.00019775,2]
[363490031,1748739046574,-500.0,0.00019775,2]
[363490032,1748739046583,-500.0,0.00019775,2]
[363490035,1748739046593,-500.0,0.00019775,2]
[363490036,1748739046602,-500.0,0.00019775,2]
[363490039,1748739046612,-600.0,0.00019775,2]
[363490041,1748739046622,-500.0,0.00019775,2]
[363490043,1748739046632,-500.0,0.00019775,2]
[363490045,1748739046641,-500.0,0.00019845,2]
[363490047,1748739046650,-500.0,0.00019885,2]
[363490049,1748739046659,-500.0,0.00019885,2]
[363490051,1748739046669,-500.0,0.00019885,2]
[363490053,1748739046678,-500.0,0.00019885,2]
[363490055,1748739046687,-500.86147166,0.00019885,2]
[363490057,1748739046697,-500.0,0.00019885,2]
[363490059,1748739046705,-500.0,0.00019885,2]
[363490061,1748739046715,-1428.5117047,0.000199,2]
[363490063,1748739046724,-1491.30318941,0.00019934,2]
[363490065,1748739046734,-700.0,0.00019964,2]
[363490067,1748739046743,-430.0,0.0002,2]
[363490069,1748739046752,-681.97,0.0002,2]
[363490071,1748739046761,-2302.45,0.0002,2]
[363490073,1748739046772,-1027.59,0.0002,2]
[363490075,1748739046783,-764.61,0.0002,2]
[363490077,1748739046793,-433.81,0.0002,2]
[363490079,1748739046802,-430.0,0.0002,2]
[363490081,1748739046812,-445.95,0.0002,2]
[363490083,1748739046821,-526.31,0.0002,2]
[363490085,1748739046831,-460.25,0.0002,2]
[363490087,1748739046840,-430.0,0.0002,2]
[363490089,1748739046850,-430.0,0.0002,2]
[363490091,1748739046860,-771.04,0.0002,2]
[363490093,1748739046869,-430.0,0.0002,2]
[363490095,1748739046878,-430.0,0.0002,2]
[363490097,1748739046888,-670.0,0.0002,2]
[363490099,1748739046902,-430.0,0.0002,2]
[363490101,1748739046911,-852.08,0.0002,2]
[363490103,1748739046920,-620.15,0.0002,2]
[363490105,1748739046929,-569.84,0.0002,2]
[363490107,1748739046939,-430.0,0.0002,2]
[363490109,1748739046949,-1342.9,0.0002,2]
[363490111,1748739046958,-430.0,0.0002,2]
[363490113,1748739046968,-885.12,0.0002,2]
[363490116,1748739046977,-1113.58,0.0002,2]
[363490118,1748739046987,-430.0,0.0002,2]
[363490120,1748739046996,-939.81,0.0002,2]
[363490122,1748739047006,-430.0,0.0002,2]
[363490124,1748739047016,-430.0,0.0002,2]
[363490126,1748739047026,-1583.31,0.0002,2]
[363490128,1748739047035,-534.72,0.0002,2]
[363490130,1748739047043,-948.01,0.0002,2]
[363490132,1748739047053,-2017.89,0.0002,2]
[363490134,1748739047063,-500.0,0.00020071,2]
[363490136,1748739047072,-561.161444,0.00020187,2]
[363490137,1748739047081,-1491.30318941,0.0002021,2]
[363490139,1748739047090,-430.0,0.00020273,2]
[363490142,1748739047100,-681.97,0.00020273,2]
[363490144,1748739047110,-2302.45,0.00020273,2]
[363490146,1748739047119,-1027.59,0.00020273,2]
[363490147,1748739047128,-764.61,0.00020273,2]
[363490150,1748739047138,-433.81,0.00020273,2]
[363490152,1748739047147,-430.0,0.00020273,2]
[363490154,1748739047157,-445.95,0.00020273,2]
[363490156,1748739047166,-526.31,0.00020273,2]
[363490158,1748739047175,-460.25,0.00020273,2]
[363490160,1748739047184,-430.0,0.00020273,2]
[363490162,1748739047194,-430.0,0.00020273,2]
[363490164,1748739047203,-771.04,0.00020273,2]
[363490166,1748739047213,-430.0,0.00020273,2]
[363490168,1748739047223,-430.0,0.00020273,2]
[363490170,1748739047232,-670.0,0.00020273,2]
[363490172,1748739047241,-430.0,0.00020273,2]
[363490174,1748739047251,-852.08,0.00020273,2]
[363490176,1748739047260,-620.15,0.00020273,2]
[363490178,1748739047270,-569.84,0.00020273,2]
[363490180,1748739047280,-430.0,0.00020273,2]
[363490182,1748739047290,-1342.9,0.00020273,2]
[363490184,1748739047300,-430.0,0.00020273,2]
[363490186,1748739047310,-885.12,0.00020273,2]
[363490188,1748739047320,-1113.58,0.00020273,2]
[363490190,1748739047330,-430.0,0.00020273,2]
[363490192,1748739047340,-939.81,0.00020273,2]
[363490194,1748739047349,-382.16,0.00020273,2]
[363490196,1748739047360,-430.0,0.00020273,2]
[363490198,1748739047370,-1583.31,0.00020273,2]
[363490200,1748739047380,-534.72,0.00020273,2]
[363490202,1748739047389,-948.01,0.00020273,2]
[363490204,1748739047399,-2017.89,0.00020273,2]
[363490206,1748739047409,-500.0,0.00020323,2]
[363490209,1748739047419,-600.0,0.00020323,2]
[363490211,1748739047429,-4440.13,0.0002041,2]
[363490213,1748739047438,-1000.0,0.00020433,2]
[363490214,1748739047448,-1491.30318941,0.00020486,3]
[363490216,1748739047458,-881.9731749,0.00020539,2]
[363490219,1748739047467,-151.0,0.00020547,2]
[363490221,1748739047477,-151.0,0.00020547,2]
[363490223,1748739047486,-151.0,0.00020547,2]
[363490225,1748739047496,-1297.71436,0.00020547,2]
[363490227,1748739047505,-1297.71436,0.00020547,2]
[363490228,1748739047515,-430.0,0.00020547,2]
[363490231,1748739047525,-681.97,0.00020547,2]
[363490233,1748739047535,-2302.45,0.00020547,2]
[363490235,1748739047544,-1027.59,0.00020547,2]
[363490237,1748739047554,-764.61,0.00020547,2]
[363490239,1748739047564,-433.81,0.00020547,2]
[363490241,1748739047573,-430.0,0.00020547,2]
[363490243,1748739047583,-445.95,0.00020547,2]
[363490245,1748739047592,-526.31,0.00020547,2]
[363490247,1748739047601,-460.25,0.00020547,2]
[363490249,1748739047611,-430.0,0.00020547,2]
[363490251,1748739047620,-430.0,0.00020547,2]
[363490253,1748739047630,-771.04,0.00020547,2]
[363490255,1748739047639,-334.9396849,0.00020547,2]
[363490257,1748739047648,-430.0,0.00020547,2]
[363490259,1748739047658,-670.0,0.00020547,2]
[363490261,1748739047667,-430.0,0.00020547,2]
[363490263,1748739047677,-852.08,0.00020547,2]
[363490265,1748739047686,-620.15,0.00020547,2]
[363490267,1748739047696,-569.84,0.00020547,2]
[363490269,1748739047705,-430.0,0.00020547,2]
[363490271,1748739047715,-1342.9,0.00020547,2]
[363490273,1748739047724,-430.0,0.00020547,2]
[363490275,1748739047736,-885.12,0.00020547,2]
[363490277,1748739047746,-1113.58,0.00020547,2]
[363490279,1748739047755,-201.84,0.00020547,2]
[363490281,1748739047764,-939.81,0.00020547,2]
[363490283,1748739047775,-430.0,0.00020547,2]
[363490285,1748739047784,-1583.31,0.00020547,2]
[363490287,1748739047794,-534.72,0.00020547,2]
[363490289,1748739047805,-948.01,0.00020547,2]
[363490291,1748739047814,-2017.89,0.00020547,2]
[363490293,1748739047823,-7674.96,0.000206,2]
[363490296,1748739047833,-690.20240459,0.00020671,2]
[363490298,1748739047842,-1491.30318941,0.00020762,3]
[363490300,1748739047851,-151.0,0.00020821,2]
[363490302,1748739047860,-151.0,0.00020821,2]
[363490303,1748739047870,-151.0,0.00020821,2]
[363490305,1748739047879,-430.0,0.00020821,2]
[363490307,1748739047890,-681.97,0.00020821,2]
[363490309,1748739047903,-2302.45,0.00020821,2]
[363490311,1748739047913,-1027.59,0.00020821,2]
[363490314,1748739047923,-764.61,0.00020821,2]
[363490316,1748739047932,-433.81,0.00020821,2]
[363490318,1748739047942,-430.0,0.00020821,2]
[363490320,1748739047951,-445.95,0.00020821,2]
[363490322,1748739047961,-526.31,0.00020821,2]
[363490324,1748739047971,-460.25,0.00020821,2]
[363490326,1748739047980,-430.0,0.00020821,2]
[363490328,1748739047989,-430.0,0.00020821,2]
[363490330,1748739047999,-771.04,0.00020821,2]
[363490332,1748739048008,-430.0,0.00020821,2]
[363490347,1748739048135,-670.0,0.00020821,2]
[363490349,1748739048146,-430.0,0.00020821,2]
[363490351,1748739048155,-852.08,0.00020821,2]
[363490353,1748739048164,-620.15,0.00020821,2]
[363490355,1748739048174,-569.84,0.00020821,2]
[363490357,1748739048184,-430.0,0.00020821,2]
[363490359,1748739048194,-1342.9,0.00020821,2]
[363490361,1748739048204,-430.0,0.00020821,2]
[363490363,1748739048214,-885.12,0.00020821,2]
[363490365,1748739048224,-1113.58,0.00020821,2]
[363490367,1748739048233,-939.81,0.00020821,2]
[363490369,1748739048243,-430.0,0.00020821,2]
[363490371,1748739048253,-1583.31,0.00020821,2]
[363490373,1748739048262,-534.72,0.00020821,2]
[363490375,1748739048272,-948.01,0.00020821,2]
[363490377,1748739048282,-2017.89,0.00020821,2]
[363490379,1748739048292,-1500.0,0.00020981,2]
[363490381,1748739048301,-1491.30318941,0.00021038,4]
[363490383,1748739048311,-700.0,0.0002106,2]
[363490385,1748739048320,-258970.76954,0.00021094,2]
[363490387,1748739048330,-151.0,0.00021095,2]
[363490389,1748739048339,-151.0,0.00021095,2]
[363490391,1748739048349,-151.0,0.00021095,2]
[363490393,1748739048358,-1297.71436,0.00021095,2]
[363490394,1748739048368,-1297.71436,0.00021095,2]
[363490396,1748739048378,-430.0,0.00021095,2]
[363490399,1748739048389,-681.97,0.00021095,2]
[363490400,1748739048399,-2302.45,0.00021095,2]
[363490403,1748739048410,-1027.59,0.00021095,2]
[363490404,1748739048420,-764.61,0.00021095,2]
[363490406,1748739048431,-433.81,0.00021095,2]
[363490408,1748739048441,-430.0,0.00021095,2]
[363490410,1748739048452,-445.95,0.00021095,2]
[363490413,1748739048462,-526.31,0.00021095,2]
[363490414,1748739048472,-460.25,0.00021095,2]
[363490416,1748739048483,-430.0,0.00021095,2]
[363490418,1748739048493,-430.0,0.00021095,2]
[363490420,1748739048504,-771.04,0.00021095,2]
[363490422,1748739048514,-302.68,0.00021095,2]
[363490424,1748739048525,-670.0,0.00021095,2]
[363490426,1748739048535,-430.0,0.00021095,2]
[363490428,1748739048546,-852.08,0.00021095,2]
[363490430,1748739048557,-620.15,0.00021095,2]
[363490432,1748739048567,-569.84,0.00021095,2]
[363490434,1748739048577,-430.0,0.00021095,2]
[363490436,1748739048586,-1342.9,0.00021095,2]
[363490438,1748739048596,-430.0,0.00021095,2]
[363490440,1748739048606,-885.12,0.00021095,2]
[363490442,1748739048616,-1113.58,0.00021095,2]
[363490444,1748739048625,-939.81,0.00021095,2]
[363490446,1748739048635,-430.0,0.00021095,2]
[363490448,1748739048645,-1583.31,0.00021095,2]
[363490450,1748739048655,-534.72,0.00021095,2]
[363490452,1748739048664,-948.01,0.00021095,2]
[363490454,1748739048674,-2017.89,0.00021095,2]
[363490456,1748739048683,-44543.37,0.000211,2]
[363490458,1748739048694,-250.0,0.00021127,2]
[363490460,1748739048703,-1428.5117047,0.00021132,2]
[363490462,1748739048714,-152.01447341,0.0002116,2]
[363490464,1748739048724,-153.53485987,0.0002116,2]
[363490466,1748739048733,-207.4,0.0002116,2]
[363490468,1748739048742,-300.0,0.0002116,2]
[363490470,1748739048752,-300.0,0.0002116,2]
[363490471,1748739048762,-300.0,0.0002116,2]
[363490473,1748739048773,-300.0,0.0002116,2]
[363490475,1748739048783,-300.0,0.0002116,2]
[363490477,1748739048793,-211.39840152,0.0002116,2]
[363490479,1748739048804,-300.0,0.0002116,2]
[363490481,1748739048814,-300.0,0.0002116,2]
[363490483,1748739048824,-300.0,0.0002116,2]
[363490485,1748739048834,-300.0,0.0002116,2]
[363490487,1748739048843,-300.0,0.0002116,2]
[363490489,1748739048853,-300.0,0.0002116,2]
[363490491,1748739048862,-300.0,0.0002116,2]
[363490493,1748739048872,-300.0,0.0002116,2]
[363490495,1748739048881,-300.0,0.0002116,2]
[363490497,1748739048892,-300.0,0.0002116,2]
[363490499,1748739048904,-5550.17,0.0002126,2]
[363490501,1748739048913,-1491.30318941,0.00021314,5]
[363490503,1748739048923,-232.78900655,0.00021369,2]
[363490505,1748739048932,-681.97,0.00021369,2]
[363490507,1748739048942,-2302.45,0.00021369,2]
[363490509,1748739048951,-1027.59,0.00021369,2]
[363490510,1748739048961,-764.61,0.00021369,2]
[363490512,1748739048973,-433.81,0.00021369,2]
[363490514,1748739048984,-510.77,0.00021369,2]
[363490516,1748739048994,-445.95,0.00021369,2]
[363490518,1748739049003,-526.31,0.00021369,2]
[363490520,1748739049013,-460.25,0.00021369,2]
[363490522,1748739049024,-430.0,0.00021369,2]
[363490524,1748739049034,-430.0,0.00021369,2]
[363490526,1748739049043,-771.04,0.00021369,2]
[363490528,1748739049053,-19.81194449,0.00021369,2]
[363490554,1748739049297,-1700.0,0.00017534,2]
[363490556,1748739049307,-1700.0,0.00017808,2]
[363490557,1748739049317,-1700.0,0.00018082,2]
[363490559,1748739049327,-1700.0,0.00018356,2]
[363490561,1748739049338,-1700.0,0.0001863,2]
[363490563,1748739049348,-1700.0,0.00018904,2]
[363490566,1748739049358,-1271.18776214,0.00019178,2]
[363490576,1748739049458,-428.81223786,0.00019178,2]
[363490578,1748739049467,-1700.0,0.00019452,2]
[363490580,1748739049477,-1700.0,0.00019726,2]
[363490582,1748739049487,-1700.0,0.0002,2]
[363490584,1748739049497,-1700.0,0.00020273,2]
[363490586,1748739049507,-264.41734648,0.00020547,2]
[363490589,1748739049521,-1435.58265352,0.00020547,2]
[363490590,1748739049530,-1700.0,0.00020821,2]
[363490592,1748739049540,-43.83734648,0.00021095,2]
[363490594,1748739049552,-1656.16265352,0.00021095,2]
[363490597,1748739049562,-650.18805551,0.00021369,2]
[363490599,1748739049572,-430.0,0.00021369,2]
[363490600,1748739049581,-852.08,0.00021369,2]
[363490602,1748739049592,-620.15,0.00021369,2]
[363490604,1748739049602,-430.0,0.00021369,2]
[363490606,1748739049611,-569.84,0.00021369,2]
[363490608,1748739049621,-1342.9,0.00021369,2]
[363490610,1748739049631,-430.0,0.00021369,2]
[363490612,1748739049640,-885.12,0.00021369,2]
[363490614,1748739049649,-1113.58,0.00021369,2]
[363490616,1748739049659,-939.81,0.00021369,2]
[363490618,1748739049669,-430.0,0.00021369,2]
[363490620,1748739049679,-1583.31,0.00021369,2]
[363490622,1748739049688,-534.72,0.00021369,2]
[363490624,1748739049698,-948.01,0.00021369,2]
[363490626,1748739049708,-2017.89,0.00021369,2]
[363490628,1748739049718,-1700.0,0.00021369,2]
[363490630,1748739049727,-924.98,0.000214,2]
[363490632,1748739049737,-2000.0,0.00021528,2]
[363490634,1748739049747,-1491.30318941,0.0002159,5]
[363490636,1748739049757,-151.0,0.000216,4]
[363490638,1748739049767,-681.97,0.00021643,2]
[363490640,1748739049776,-2302.45,0.00021643,2]
[363490642,1748739049785,-1027.59,0.00021643,2]
[363490644,1748739049795,-764.61,0.00021643,2]
[363490646,1748739049805,-445.95,0.00021643,2]
[363490648,1748739049815,-526.31,0.00021643,2]
[363490650,1748739049825,-460.25,0.00021643,2]
[363490652,1748739049835,-430.0,0.00021643,2]
[363490654,1748739049844,-430.0,0.00021643,2]
[363490656,1748739049854,-771.04,0.00021643,2]
[363490658,1748739049864,-670.0,0.00021643,2]
[363490660,1748739049873,-201.05882644,0.00021643,2]
[363490662,1748739049883,-852.08,0.00021643,2]
[363490664,1748739049895,-620.15,0.00021643,2]
[363490666,1748739049905,-189.75,0.00021643,2]
[363490668,1748739049915,-569.84,0.00021643,2]
[363490670,1748739049924,-1342.9,0.00021643,2]
[363490672,1748739049934,-430.0,0.00021643,2]
[363490674,1748739049944,-885.12,0.00021643,2]
[363490676,1748739049953,-1113.58,0.00021643,2]
[363490678,1748739049963,-939.81,0.00021643,2]
[363490679,1748739049972,-430.0,0.00021643,2]
[363490681,1748739049982,-1583.31,0.00021643,2]
[363490684,1748739049992,-534.72,0.00021643,2]
[363490686,1748739050003,-948.01,0.00021643,2]
[363490688,1748739050013,-2017.89,0.00021643,2]
[363490690,1748739050024,-1700.0,0.00021643,2]
[363490692,1748739050034,-500.0,0.0002169,2]
[363490693,1748739050044,-151.0,0.000217,2]
[363490695,1748739050054,-151.0,0.000217,2]
[363490697,1748739050064,-151.0,0.000217,2]
[363490699,1748739050073,-1297.71436,0.000217,2]
[363490701,1748739050084,-1297.71436,0.000217,2]
[363490703,1748739050094,-811.238538,0.00021747,3]
[363490705,1748739050104,-690.20240459,0.00021754,2]
[363490708,1748739050114,-151.0,0.000218,4]
[363490709,1748739050124,-7674.96,0.000218,2]
[363490711,1748739050134,-151.0,0.00021827,2]
[363490713,1748739050143,-1491.30318941,0.00021866,6]
[363490715,1748739050153,-6000.0,0.00021886,2]